[Event "BL 2018-19"]
[Site "Berlin"]
[Date "2019.03.01"]
[Round "9.7"]
[White "Heimann, Andreas"]
[Black "Vallejo Pons, Francisco"]
[Result "1/2-1/2"]
[ECO "C72"]
[WhiteElo "2601"]
[BlackElo "2694"]
[Annotator "ChessBase"]
[PlyCount "79"]
[EventDate "2018.11.10"]
[EventType "team-tourn"]
[EventCountry "GER"]
[SourceTitle "playchess.com"]
[Source "ChessBase"]
[SourceQuality "1"]
[WhiteTeam "SF Deizisau"]
[BlackTeam "Baden-Baden"]
[TimeControl "40/6000+30:3000+30"]

1. e4 {[%emt 0:00:00]} e5 {[%emt 0:00:00]} 2. Nf3 {[%emt 0:00:00]} Nc6 {[%emt 0:00:04]} 3. Bb5 {[%emt 0:00:00]} a6 {[%emt 0:00:27]} 4. Ba4 {[%emt 0:00:03]} d6 {[%emt 0:00:47]} 5. O-O {[%emt 0:00:45]} Bd7 {[%emt 0:01:17]} 6. c4 {[%emt 0:01:54]} Nf6 {[%emt 0:06:46]} 7. Nc3 {[%emt 0:00:38]} Nd4 {[%emt 0:00:44]} 8. Bxd7+ {[%emt 0:07:31]} Qxd7 {[%emt 0:03:48]} 9. d3 {[%emt 0:00:21]} Nxf3+ {[%emt 0:06:01]} 10. Qxf3 {[%emt 0:00:18]} Be7 {[%emt 0:00:02]} 11. h3 {[%emt 0:11:04]} O-O {[%emt 0:05:04]} 12. Be3 {[%emt 0:00:33]} c6 {[%emt 0:05:00]} 13. a4 {[%emt 0:25:48]} a5 {[%emt 0:10:04]} 14. d4 {[%emt 0:05:31]} Qc7 {[%emt 0:06:46]} 15. Rac1 {[%emt 0:11:06]} g6 {[%emt 0:04:45]} 16. d5 {[%emt 0:06:23]} Nh5 {[%emt 0:02:27]} 17. Qd1 {[%emt 0:02:03]} Rfe8 {[%emt 0:14:52]} 18. Qd2 {[%emt 0:02:29]} Bf8 {[%emt 0:02:22]} 19. Rfd1 {[%emt 0:02:49]} Ng7 {[%emt 0:05:22]} 20. g4 {[%emt 0:01:57]} Be7 {[%emt 0:07:42]} 21. Kh1 Rad8 {[%emt 0:04:21]} 22. Rg1 {[%emt 0:06:27]} Rd7 {[%emt 0:01:46]} 23. Ne2 {[%emt 0:03:10]} Bh4 {[%emt 0:02:23]} 24. Rg2 {[%emt 0:00:51]} Rc8 {[%emt 0:04:37]} 25. b3 {[%emt 0:02:02]} Rf8 {[%emt 0:03:41]} 26. Ng1 {[%emt 0:05:58]} f5 {[%emt 0:02:34]} 27. gxf5 {[%emt 0:03:02]} gxf5 {[%emt 0:00:01]} 28. Nf3 {[%emt 0:00:21]} Bd8 {[%emt 0:06:10]} 29. Qd3 {[%emt 0:06:58]} f4 {[%emt 0:02:09]} 30. Bd2 {[%emt 0:00:05]} c5 {[%emt 0:01:49]} 31. Nh2 {[%emt 0:01:17]} Rf6 {[%emt 0:00:46]} 32. Qf3 {[%emt 0:02:02]} Rdf7 {[%emt 0:00:18]} 33. Kg1 {[%emt 0:01:33]} Qd7 {[%emt 0:00:20]} 34. Ng4 {[%emt 0:00:39]} Rg6 {[%emt 0:00:14]} 35. Kf1 {[%emt 0:00:06]} Kf8 {[%emt 0:01:15]} 36. Ke2 {[%emt 0:00:23]} Ne8 {[%emt 0:00:27]} 37. Rcg1 {[%emt 0:00:13]} Rfg7 38. Bc3 {[%emt 0:01:24]} Qe7 {[%emt 0:01:15]} 39. Kf1 {[%emt 0:00:37]} b6 {[%emt 0:00:15]} 40. Bd2 {[%emt 0:00:46]} 1/2-1/2

[Event "BL 2018-19"]
[Site "Berlin"]
[Date "2019.03.01"]
[Round "9.7"]
[White "Tischbierek, Raj"]
[Black "Jakubowski, Krzysztof"]
[Result "0-1"]
[ECO "B47"]
[WhiteElo "2432"]
[BlackElo "2510"]
[Annotator "ChessBase"]
[PlyCount "120"]
[EventDate "2018.11.10"]
[EventType "team-tourn"]
[EventCountry "GER"]
[SourceTitle "playchess.com"]
[Source "ChessBase"]
[SourceQuality "1"]
[WhiteTeam "Dresden"]
[BlackTeam "SF Berlin"]
[TimeControl "40/6000+30:3000+30"]

1. e4 {[%emt 0:00:00]} c5 {[%emt 0:00:00]} 2. Nf3 {[%emt 0:00:11]} e6 {[%emt 0:00:16]} 3. d4 {[%emt 0:00:18]} cxd4 {[%emt 0:00:10]} 4. Nxd4 {[%emt 0:00:05]} Nc6 {[%emt 0:00:19]} 5. Nc3 {[%emt 0:00:37]} Qc7 {[%emt 0:00:15]} 6. Be2 {[%emt 0:01:03]} Nf6 {[%emt 0:01:03]} 7. O-O {[%emt 0:01:08]} a6 {[%emt 0:00:17]} 8. a4 {[%emt 0:00:42]} h5 {[%emt 0:04:57]} 9. h3 {[%emt 0:19:19]} Nxd4 {[%emt 0:08:36]} 10. Qxd4 {[%emt 0:00:40]} Bc5 {[%emt 0:00:10]} 11. Qd3 {[%emt 0:01:45]} b6 {[%emt 0:07:44]} 12. Be3 {[%emt 0:40:52]} Bb7 {[%emt 0:05:54]} 13. Rad1 {[%emt 0:06:03]} Rc8 {[%emt 0:14:58]} 14. Bg5 {[%emt 0:07:09]} Bb4 {[%emt 0:15:54]} 15. Bxf6 {[%emt 0:01:40]} gxf6 {[%emt 0:00:08]} 16. Na2 {[%emt 0:02:08]} Be7 {[%emt 0:01:52]} 17. c4 {[%emt 0:00:33]} h4 {[%emt 0:00:56]} 18. Nc3 {[%emt 0:01:20]} Rg8 {[%emt 0:04:11]} 19. Bg4 {[%emt 0:05:09]} Bb4 {[%emt 0:16:41]} 20. Na2 {[%emt 0:03:33]} Bc5 {[%emt 0:01:19]} 21. Rfe1 {[%emt 0:01:43]} Rd8 {[%emt 0:02:57]} 22. b4 {[%emt 0:02:48]} Be7 {[%emt 0:00:28]} 23. Re2 {[%emt 0:01:29]} Rg5 {[%emt 0:04:59]} 24. Rde1 {[%emt 0:03:24]} Qf4 {[%emt 0:01:58]} 25. Qe3 {[%emt 0:03:11]} Bd6 {[%emt 0:00:25]} 26. Qxf4 {[%emt 0:00:29]} Bxf4 {[%emt 0:00:05]} 27. Nc1 {[%emt 0:00:22]} Be5 {[%emt 0:07:21]} 28. Nd3 {[%emt 0:00:29]} a5 {[%emt 0:00:43]} 29. Nxe5 {[%emt 0:04:17]} fxe5 {[%emt 0:00:13]} 30. Rb2 {[%emt 0:00:49]} Bc6 {[%emt 0:02:10]} 31. Re3 {[%emt 0:00:48]} Ke7 {[%emt 0:01:45]} 32. Bf3 {[%emt 0:01:02]} Rgg8 {[%emt 0:01:58]} 33. Rc3 {[%emt 0:00:24]} Rc8 {[%emt 0:03:34]} 34. Kf1 {[%emt 0:00:43]} Rc7 {[%emt 0:00:49]} 35. Ke1 {[%emt 0:00:22]} axb4 {[%emt 0:00:43]} 36. Rxb4 {[%emt 0:00:06]} Ra8 {[%emt 0:00:03]} 37. Ra3 {[%emt 0:00:32]} Rca7 {[%emt 0:00:48]} 38. Bd1 {[%emt 0:00:12]} Ra6 {[%emt 0:00:12]} 39. f3 {[%emt 0:00:41]} Kd6 {[%emt 0:00:30]} 40. Rb2 {[%emt 0:01:05]} Kc5 {[%emt 0:00:31]} 41. Rd3 {[%emt 0:09:55]} Rg8 {[%emt 0:15:41]} 42. Kf2 {[%emt 0:03:42]} f6 {[%emt 0:00:37]} 43. Rbd2 {[%emt 0:03:27]} Rg7 {[%emt 0:00:43]} 44. Ke3 {[%emt 0:01:12]} Ra8 {[%emt 0:00:24]} 45. Ra2 {[%emt 0:02:35]} Rg3 {[%emt 0:03:57]} 46. Kf2 {[%emt 0:09:32]} Rag8 {[%emt 0:05:42]} 47. Kf1 {[%emt 0:01:22]} f5 {[%emt 0:00:12]} 48. exf5 {[%emt 0:01:34]} exf5 {[%emt 0:00:05]} 49. a5 {[%emt 0:08:24]} e4 {[%emt 0:00:42]} 50. Rb3 {[%emt 0:01:50]} b5 {[%emt 0:07:31]} 51. cxb5 {[%emt 0:02:19]} Bxb5+ {[%emt 0:00:05]} 52. Be2 {[%emt 0:02:21]} Bc6 {[%emt 0:00:37]} 53. Rc2+ {[%emt 0:01:20]} Kd4 {[%emt 0:00:51]} 54. Rb4+ {[%emt 0:03:34]} Ke5 {[%emt 0:02:18]} 55. Bb5 {[%emt 0:02:58]} Ba8 {[%emt 0:05:48]} 56. f4+ {[%emt 0:01:15]} Kxf4 {[%emt 0:00:41]} 57. Bxd7 {[%emt 0:00:22]} Ra3 {[%emt 0:04:47]} 58. Rf2+ {[%emt 0:00:44]} Kg3 {[%emt 0:00:10]} 59. Rxf5 {[%emt 0:00:48]} Kh2 {[%emt 0:07:34]} 60. Rb2 {[%emt 0:00:40]} Rgg3 {[%emt 0:01:06]} 0-1

[Event "BL 2018-19"]
[Site "Berlin"]
[Date "2019.03.01"]
[Round "9.8"]
[White "Bacrot, Etienne"]
[Black "Kollars, Dmitrij"]
[Result "1/2-1/2"]
[ECO "C50"]
[WhiteElo "2677"]
[BlackElo "2542"]
[Annotator "ChessBase"]
[PlyCount "80"]
[EventDate "2018.11.10"]
[EventType "team-tourn"]
[EventCountry "GER"]
[SourceTitle "playchess.com"]
[Source "ChessBase"]
[SourceQuality "1"]
[WhiteTeam "Baden-Baden"]
[BlackTeam "SF Deizisau"]
[TimeControl "40/6000+30:3000+30"]

1. e4 {[%emt 0:00:00]} e5 {[%emt 0:00:00]} 2. Nf3 {[%emt 0:00:00]} Nc6 {[%emt 0:00:00]} 3. Bc4 {[%emt 0:00:00]} Nf6 {[%emt 0:00:06]} 4. d3 {[%emt 0:00:00]} Bc5 {[%emt 0:00:28]} 5. O-O {[%emt 0:00:16]} d6 {[%emt 0:01:05]} 6. c3 {[%emt 0:01:51]} h6 {[%emt 0:00:32]} 7. Re1 {[%emt 0:05:47]} O-O {[%emt 0:01:35]} 8. Nbd2 {[%emt 0:09:37]} a5 {[%emt 0:01:40]} 9. Nf1 {[%emt 0:02:34]} Be6 {[%emt 0:00:49]} 10. Bb5 {[%emt 0:04:42]} Ne7 {[%emt 0:00:21]} 11. h3 {[%emt 0:06:16]} c6 {[%emt 0:06:17]} 12. Ba4 {[%emt 0:00:09]} Ng6 {[%emt 0:02:03]} 13. d4 {[%emt 0:01:08]} exd4 {[%emt 0:16:30]} 14. Nxd4 {[%emt 0:20:04]} Bd7 {[%emt 0:06:50]} 15. Bc2 {[%emt 0:03:11]} Qb6 {[%emt 0:10:35]} 16. Ng3 {[%emt 0:09:02]} Rfe8 {[%emt 0:01:38]} 17. f4 {[%emt 0:01:04]} Rad8 {[%emt 0:05:36]} 18. Kh2 {[%emt 0:01:39]} Bc8 {[%emt 0:06:04]} 19. Rb1 {[%emt 0:09:12]} d5 {[%emt 0:08:12]} 20. e5 {[%emt 0:00:58]} Ne4 {[%emt 0:00:45]} 21. Bxe4 {[%emt 0:11:17]} dxe4 {[%emt 0:00:27]} 22. Rxe4 {[%emt 0:00:50]} f5 {[%emt 0:07:43]} 23. Re1 {[%emt 0:00:30]} Bxd4 {[%emt 0:00:55]} 24. cxd4 Qxd4 25. Be3 {[%emt 0:03:43]} Qc4 {[%emt 0:10:19]} 26. Qh5 {[%emt 0:00:48]} Kh7 {[%emt 0:01:42]} 27. Nxf5 {[%emt 0:04:55]} Nxf4 {[%emt 0:02:14]} 28. Qg4 {[%emt 0:03:25]} Bxf5 {[%emt 0:03:40]} 29. Qxf5+ {[%emt 0:00:08]} Ng6 {[%emt 0:00:04]} 30. b3 {[%emt 0:00:06]} Qb5 {[%emt 0:02:12]} 31. a4 {[%emt 0:02:14]} Qxe5+ {[%emt 0:00:49]} 32. Qxe5 {[%emt 0:00:06]} Rxe5 {[%emt 0:00:23]} 33. Bb6 {[%emt 0:00:36]} Rdd5 {[%emt 0:02:00]} 34. Bc7 {[%emt 0:02:16]} Re7 {[%emt 0:04:02]} 35. Rxe7 {[%emt 0:02:53]} Nxe7 {[%emt 0:00:04]} 36. Re1 {[%emt 0:00:07]} Nf5 {[%emt 0:01:06]} 37. g4 {[%emt 0:04:07]} Nh4 {[%emt 0:04:21]} 38. Re3 {[%emt 0:00:59]} Kg8 {[%emt 0:01:15]} 39. Re8+ {[%emt 0:01:57]} Kh7 {[%emt 0:00:30]} 40. Rb8 {[%emt 0:00:00]} Rd2+ 1/2-1/2

[Event "BL 2018-19"]
[Site "Berlin"]
[Date "2019.03.01"]
[Round "9.8"]
[White "Abel, Dennes"]
[Black "Hoffmann, Paul"]
[Result "1/2-1/2"]
[ECO "A40"]
[WhiteElo "2465"]
[BlackElo "2376"]
[Annotator "RC"]
[PlyCount "49"]
[EventDate "2018.11.10"]
[EventType "team-tourn"]
[EventCountry "GER"]
[SourceTitle "playchess.com"]
[Source "ChessBase"]
[SourceQuality "1"]
[WhiteTeam "SF Berlin"]
[BlackTeam "Dresden"]
[TimeControl "40/6000+30:3000+30"]

1. d4 {[%emt 0:00:00]} Nf6 {[%emt 0:00:00]} 2. c4 {[%emt 0:00:00]} e6 {[%emt 0:00:00]} 3. g3 {[%emt 0:00:24]} Bb4+ {[%emt 0:00:15]} 4. Nd2 {[%emt 0:00:35]} d5 {[%emt 0:04:47]} 5. Bg2 {[%emt 0:01:02]} O-O {[%emt 0:00:10]} 6. Ngf3 {[%emt 0:00:19]} a5 {[%emt 0:09:38]} 7. O-O {[%emt 0:01:39]} Nbd7 {[%emt 0:03:31]} 8. Qc2 {[%emt 0:03:14]} c5 {[%emt 0:12:26]} 9. cxd5 {[%emt 0:03:18]} exd5 {[%emt 0:00:52]} 10. dxc5 {[%emt 0:06:01]} a4 {[%emt 0:02:34]} 11. Nd4 {[%emt 0:14:59]} Bxc5 {[%emt 0:02:09]} 12. N2f3 {[%emt 0:00:09]} Qb6 {[%emt 0:01:28]} 13. Rd1 {[%emt 0:11:41]} Re8 {[%emt 0:00:30]} 14. e3 {[%emt 0:06:56]} Ne4 {[%emt 0:01:00]} 15. Bd2 {[%emt 0:01:09]} Ndf6 {[%emt 0:01:53]} 16. h3 {[%emt 0:03:56]} Bd7 {[%emt 0:00:51]} 17. Be1 {[%emt 0:01:14]} Rac8 {[%emt 0:01:07]} 18. Qe2 {[%emt 0:00:33]} Bd6 {[%emt 0:05:15]} 19. Rac1 {[%emt 0:01:52]} h6 {[%emt 0:01:23]} 20. Rxc8 {[%emt 0:06:03]} Rxc8 {[%emt 0:00:08]} 21. Nd2 {[%emt 0:00:50]} Nc5 {[%emt 0:09:47]} 22. Nb1 {[%emt 0:00:50]} Nce4 {[%emt 0:00:45]} 23. Nd2 {[%emt 0:01:12]} Nc5 {[%emt 0:05:40]} 24. Nb1 {[%emt 0:01:06]} Nce4 {[%emt 0:00:32]} 25. Nd2 {[%emt 0:06:44]} 1/2-1/2

[Event "BL 2018-19"]
[Site "Berlin"]
[Date "2019.03.01"]
[Round "9.9"]
[White "Ragger, Markus"]
[Black "Demchenko, Anton"]
[Result "1/2-1/2"]
[ECO "C70"]
[WhiteElo "2701"]
[BlackElo "2679"]
[Annotator "ChessBase"]
[PlyCount "43"]
[EventDate "2018.11.10"]
[EventType "team-tourn"]
[EventCountry "GER"]
[SourceTitle "playchess.com"]
[Source "ChessBase"]
[SourceQuality "1"]
[WhiteTeam "Solingen"]
[BlackTeam "Duesseldorf"]
[TimeControl "40/6000+30:3000+30"]

1. e4 {[%emt 0:00:00]} e5 {[%emt 0:00:00]} 2. Nf3 {[%emt 0:00:00]} Nc6 {[%emt 0:00:00]} 3. Bb5 {[%emt 0:00:00]} a6 {[%emt 0:00:48]} 4. Ba4 {[%emt 0:00:00]} Nge7 {[%emt 0:00:21]} 5. Bb3 {[%emt 0:00:05]} d5 {[%emt 0:04:54]} 6. Nc3 {[%emt 0:18:37]} Be6 {[%emt 0:00:13]} 7. Ng5 {[%emt 0:04:46]} Qd7 {[%emt 0:00:08]} 8. Nxe6 {[%emt 0:01:57]} fxe6 {[%emt 0:00:08]} 9. O-O {[%emt 0:02:07]} O-O-O {[%emt 0:01:33]} 10. d3 {[%emt 0:00:36]} Nd4 {[%emt 0:05:43]} 11. f4 {[%emt 0:09:32]} Nxb3 {[%emt 0:12:00]} 12. axb3 {[%emt 0:00:52]} exf4 {[%emt 0:13:44]} 13. Bxf4 {[%emt 0:02:02]} Nc6 {[%emt 0:01:11]} 14. exd5 {[%emt 0:07:11]} Bc5+ {[%emt 0:07:01]} 15. Kh1 {[%emt 0:01:16]} exd5 {[%emt 0:00:06]} 16. Ne2 {[%emt 0:06:38]} Rhf8 {[%emt 0:15:11]} 17. d4 {[%emt 0:04:41]} Bd6 {[%emt 0:00:25]} 18. c3 {[%emt 0:01:09]} Rde8 {[%emt 0:17:51]} 19. Bxd6 {[%emt 0:05:35]} Qxd6 {[%emt 0:00:07]} 20. b4 {[%emt 0:01:10]} Rxf1+ {[%emt 0:06:52]} 21. Qxf1 {[%emt 0:00:10]} Rf8 {[%emt 0:00:42]} 22. Qe1 {[%emt 0:06:36]} 1/2-1/2

[Event "BL 2018-19"]
[Site "Berlin"]
[Date "2019.03.01"]
[Round "9.9"]
[White "McShane, Luke J"]
[Black "Tregubov, Pavel V."]
[Result "1/2-1/2"]
[ECO "C42"]
[WhiteElo "2667"]
[BlackElo "2592"]
[Annotator "ChessBase"]
[PlyCount "81"]
[EventDate "2018.11.10"]
[EventType "team-tourn"]
[EventCountry "GER"]
[SourceTitle "playchess.com"]
[Source "ChessBase"]
[SourceQuality "1"]
[WhiteTeam "Werder Bremen"]
[BlackTeam "Muelheim"]
[TimeControl "40/6000+30:3000+30"]

1. e4 {[%emt 0:00:59]} e5 {[%emt 0:00:00]} 2. Nf3 {[%emt 0:00:29]} Nf6 {[%emt 0:00:00]} 3. Nxe5 {[%emt 0:01:10]} d6 {[%emt 0:00:00]} 4. Nf3 {[%emt 0:00:04]} Nxe4 {[%emt 0:00:04]} 5. Nc3 {[%emt 0:00:14]} Nxc3 {[%emt 0:00:09]} 6. dxc3 {[%emt 0:00:04]} Be7 {[%emt 0:00:08]} 7. Be3 {[%emt 0:10:02]} Nd7 {[%emt 0:01:50]} 8. Be2 {[%emt 0:10:13]} O-O {[%emt 0:01:15]} 9. O-O {[%emt 0:00:38]} Bf6 {[%emt 0:02:39]} 10. a4 {[%emt 0:02:09]} a5 {[%emt 0:10:12]} 11. Nd4 {[%emt 0:18:17]} Re8 {[%emt 0:03:08]} 12. Re1 {[%emt 0:02:42]} Ne5 {[%emt 0:05:32]} 13. f4 {[%emt 0:01:46]} Ng6 {[%emt 0:08:14]} 14. Qd2 {[%emt 0:11:08]} c6 {[%emt 0:01:59]} 15. Bf2 {[%emt 0:07:08]} Bd7 {[%emt 0:06:00]} 16. Rad1 {[%emt 0:00:40]} Qc7 {[%emt 0:01:00]} 17. g3 {[%emt 0:02:30]} Rad8 {[%emt 0:02:37]} 18. c4 {[%emt 0:01:03]} Bc8 {[%emt 0:11:32]} 19. c3 {[%emt 0:00:59]} Nf8 {[%emt 0:01:12]} 20. b4 {[%emt 0:10:15]} g6 {[%emt 0:07:00]} 21. Bf3 {[%emt 0:03:43]} Ne6 {[%emt 0:03:13]} 22. Re2 {[%emt 0:03:58]} Nxd4 {[%emt 0:07:47]} 23. Rxe8+ {[%emt 0:02:42]} Rxe8 {[%emt 0:00:06]} 24. Bxd4 {[%emt 0:00:05]} Bxd4+ {[%emt 0:07:16]} 25. Qxd4 {[%emt 0:00:05]} Qe7 {[%emt 0:01:58]} 26. bxa5 {[%emt 0:06:16]} Bh3 {[%emt 0:05:04]} 27. Kf2 {[%emt 0:02:42]} h5 {[%emt 0:00:22]} 28. Qd2 {[%emt 0:02:42]} Qc7 {[%emt 0:01:34]} 29. Qxd6 {[%emt 0:02:22]} Qxa5 {[%emt 0:00:14]} 30. Qb4 {[%emt 0:02:42]} Qf5 {[%emt 0:02:50]} 31. Qb2 {[%emt 0:03:33]} Bg4 {[%emt 0:01:51]} 32. Qb1 {[%emt 0:00:39]} Qe6 {[%emt 0:10:07]} 33. Bxg4 {[%emt 0:00:35]} Qe3+ {[%emt 0:02:36]} 34. Kg2 {[%emt 0:00:27]} hxg4 {[%emt 0:00:07]} 35. Qd3 {[%emt 0:00:04]} Qxd3 {[%emt 0:04:09]} 36. Rxd3 {[%emt 0:00:02]} Ra8 {[%emt 0:01:40]} 37. Rd7 {[%emt 0:00:44]} Rxa4 {[%emt 0:00:07]} 38. Rxb7 {[%emt 0:00:03]} Rxc4 {[%emt 0:00:06]} 39. Rb3 {[%emt 0:00:03]} Ra4 {[%emt 0:01:35]} 40. Rb2 {[%emt 0:00:57]} Rc4 {[%emt 0:01:18]} 41. Rc2 {[%emt 0:52:20]} 1/2-1/2

[Event "BL 2018-19"]
[Site "Berlin"]
[Date "2019.03.01"]
[Round "9.10"]
[White "Fridman, Daniel"]
[Black "Efimenko, Zahar"]
[Result "1/2-1/2"]
[ECO "E62"]
[WhiteElo "2633"]
[BlackElo "2635"]
[Annotator "ChessBase"]
[PlyCount "41"]
[EventDate "2018.11.10"]
[EventType "team-tourn"]
[EventCountry "GER"]
[SourceTitle "playchess.com"]
[Source "ChessBase"]
[SourceQuality "1"]
[WhiteTeam "Muelheim"]
[BlackTeam "Werder Bremen"]
[TimeControl "40/6000+30:3000+30"]

1. d4 d6 2. Nf3 Nf6 3. g3 g6 4. Bg2 Bg7 5. O-O O-O 6. c4 c6 7. Nc3 Bf5 8. b3 Ne4 9. Bb2 Nxc3 10. Bxc3 Be4 11. e3 Nd7 12. Bh3 c5 13. Rc1 {[%emt 0:17:50]} e6 {[%emt 0:23:37]} 14. Nd2 {[%emt 0:04:09]} Bc6 {[%emt 0:01:02]} 15. b4 {[%emt 0:08:08]} b6 {[%emt 0:08:55]} 16. Nb3 {[%emt 0:08:13]} Rc8 {[%emt 0:04:20]} 17. dxc5 {[%emt 0:06:48]} dxc5 {[%emt 0:05:11]} 18. Bxg7 {[%emt 0:01:34]} Kxg7 {[%emt 0:00:05]} 19. bxc5 {[%emt 0:04:02]} Nxc5 {[%emt 0:01:05]} 20. Nxc5 {[%emt 0:01:29]} bxc5 {[%emt 0:00:12]} 21. Bg2 {[%emt 0:00:58]} 1/2-1/2

[Event "BL 2018-19"]
[Site "Berlin"]
[Date "2019.03.01"]
[Round "9.10"]
[White "Alekseev, Evgeny"]
[Black "Van Wely, Loek"]
[Result "1/2-1/2"]
[ECO "A36"]
[WhiteElo "2620"]
[BlackElo "2622"]
[Annotator "RC"]
[PlyCount "97"]
[EventDate "2018.11.10"]
[EventType "team-tourn"]
[EventCountry "GER"]
[SourceTitle "playchess.com"]
[Source "ChessBase"]
[SourceQuality "1"]
[WhiteTeam "Duesseldorf"]
[BlackTeam "Solingen"]
[TimeControl "40/6000+30:3000+30"]

1. c4 {[%emt 0:00:00]} c5 {[%emt 0:02:26]} 2. g3 {[%emt 0:02:13]} g6 {[%emt 0:05:27]} 3. Bg2 {[%emt 0:01:47]} Bg7 {[%emt 0:00:08]} 4. Nc3 {[%emt 0:00:20]} Nc6 {[%emt 0:00:38]} 5. d3 {[%emt 0:01:17]} h5 {[%emt 0:03:45]} 6. h3 {[%emt 0:12:22]} d6 {[%emt 0:02:12]} 7. e3 {[%emt 0:02:58]} e5 {[%emt 0:03:56]} 8. Nge2 {[%emt 0:03:16]} Nge7 {[%emt 0:03:48]} 9. a3 {[%emt 0:05:30]} O-O {[%emt 0:03:58]} 10. Rb1 {[%emt 0:09:07]} a5 {[%emt 0:03:15]} 11. O-O {[%emt 0:04:23]} Rb8 {[%emt 0:05:38]} 12. Bd2 {[%emt 0:15:10]} Be6 {[%emt 0:23:45]} 13. Qb3 {[%emt 0:00:50]} f5 {[%emt 0:12:31]} 14. h4 {[%emt 0:03:03]} Kh8 {[%emt 0:03:43]} 15. Nd5 {[%emt 0:10:28]} Nxd5 {[%emt 0:08:31]} 16. cxd5 {[%emt 0:01:54]} Bg8 {[%emt 0:00:27]} 17. Qb5 {[%emt 0:03:47]} Ne7 {[%emt 0:00:09]} 18. e4 {[%emt 0:00:38]} b6 {[%emt 0:01:12]} 19. b4 {[%emt 0:04:36]} axb4 {[%emt 0:00:47]} 20. axb4 {[%emt 0:00:06]} Bf7 {[%emt 0:01:03]} 21. Bg5 {[%emt 0:03:22]} Qc7 {[%emt 0:00:42]} 22. Rfc1 {[%emt 0:03:45]} Be8 {[%emt 0:01:49]} 23. Qa6 {[%emt 0:03:53]} fxe4 {[%emt 0:03:33]} 24. dxe4 {[%emt 0:02:26]} Ng8 {[%emt 0:00:26]} 25. bxc5 {[%emt 0:02:16]} dxc5 {[%emt 0:02:56]} 26. Nc3 {[%emt 0:02:52]} Nh6 {[%emt 0:04:43]} 27. Rc2 {[%emt 0:07:16]} Nf7 {[%emt 0:01:01]} 28. Rcb2 {[%emt 0:00:04]} Nxg5 {[%emt 0:01:22]} 29. hxg5 {[%emt 0:00:06]} Qe7 {[%emt 0:00:13]} 30. Rxb6 {[%emt 0:00:39]} Rxb6 {[%emt 0:00:25]} 31. Qxb6 {[%emt 0:00:31]} Qxg5 {[%emt 0:00:07]} 32. Qxc5 {[%emt 0:00:47]} h4 {[%emt 0:02:02]} 33. gxh4 {[%emt 0:00:48]} Qxh4 {[%emt 0:00:03]} 34. Rb8 {[%emt 0:01:30]} Qf4 {[%emt 0:05:15]} 35. Ne2 {[%emt 0:00:19]} Qd2 {[%emt 0:01:36]} 36. Ng3 {[%emt 0:00:23]} Qd4 {[%emt 0:00:57]} 37. Rc8 {[%emt 0:02:07]} Kh7 {[%emt 0:00:15]} 38. Qxd4 {[%emt 0:01:21]} exd4 {[%emt 0:00:02]} 39. Bf1 {[%emt 0:00:19]} Ba4 {[%emt 0:03:32]} 40. Rxf8 {[%emt 0:00:49]} Bxf8 {[%emt 0:00:02]} 41. Bd3 {[%emt 0:50:41]} Bd6 {[%emt 0:09:51]} 42. Ne2 {[%emt 0:00:00]} Kg7 {[%emt 0:00:53]} 43. f4 {[%emt 0:00:00]} Kf6 {[%emt 0:12:31]} 44. Kf2 {[%emt 0:00:00]} g5 {[%emt 0:00:30]} 45. e5+ {[%emt 0:00:00]} Bxe5 {[%emt 0:00:05]} 46. fxe5+ {[%emt 0:00:00]} Kxe5 {[%emt 0:00:09]} 47. Bc4 {[%emt 0:00:00]} Bc2 {[%emt 0:01:39]} 48. Nc1 {[%emt 0:00:00]} Be4 {[%emt 0:00:33]} 49. Nd3+ {[%emt 0:00:00]} 1/2-1/2